Workbook

Sheet 1
A1: CONSEJO ESTATAL DE POBLACION
A2: Estado de Situación Financiera Detallado - LDF
A3: Del 31 de Diciembre de 2016 y al 30 de septiembre 2017
A4: (PESOS)
A5: Concepto (c) | B5: 2017 | C5: 31 de diciembre de 2016 | E5: Concepto (c) | F5: 2017 | G5: 31 de diciembre de 2016
A6: ACTIVO | E6: PASIVO
A7: Activo Circulante | E7: Pasivo Circulante
A8: a. Efectivo y Equivalentes (a=a1+a2+a3+a4+a5+a6+a7) | B8: 394890 | C8: 77253 | E8: a. Cuentas por Pagar a Corto Plazo (a=a1+a2+a3+a4+a5+a6+a7+a8+a9) | F8: 14968 | G8: 13875
A9: a1) Efectivo | B9: 0 | C9: 0 | E9: a1) Servicios Personales por Pagar a Corto Plazo | F9: 0 | G9: -1
A10: a2) Bancos/Tesorería | B10: 394890 | C10: 77253 | E10: a2) Proveedores por Pagar a Corto Plazo | F10: 0 | G10: 0
A11: a3) Bancos/Dependencias y Otros | C11: 0 | E11: a3) Contratistas por Obras Públicas por Pagar a Corto Plazo | F11: 0 | G11: 0
A12: a4) Inversiones Temporales (Hasta 3 meses) | B12: 0 | C12: 0 | E12: a4) Participaciones y Aportaciones por Pagar a Corto Plazo | F12: 0 | G12: 0
A13: a5) Fondos con Afectación Específica | B13: 0 | C13: 0 | E13: a5) Transferencias Otorgadas por Pagar a Corto Plazo | F13: 0 | G13: 0
A14: a6) Depósitos de Fondos de Terceros en Garantía y/o Administración | B14: 0 | C14: 0 | E14: a6) Intereses, Comisiones y Otros Gastos de la Deuda Pública por Pagar a Corto Plazo | F14: 0 | G14: 0
A15: a7) Otros Efectivos y Equivalentes | B15: 0 | C15: 0 | E15: a7) Retenciones y Contribuciones por Pagar a Corto Plazo | F15: 14968 | G15: 25756
A16: b. Derechos a Recibir Efectivo o Equivalentes (b=b1+b2+b3+b4+b5+b6+b7) | B16: 56650 | C16: 17956 | E16: a8) Devoluciones de la Ley de Ingresos por Pagar a Corto Plazo | F16: 0 | G16: 0
A17: b1) Inversiones Financieras de Corto Plazo | B17: 0 | C17: 0 | E17: a9) Otras Cuentas por Pagar a Corto Plazo | F17: 0 | G17: 0
A18: b2) Cuentas por Cobrar a Corto Plazo | B18: 0 | C18: 0 | E18: b. Documentos por Pagar a Corto Plazo (b=b1+b2+b3) | F18: =+F19+F20+F21 -> 0 | G18: =+G19+G20+G21 -> 0
A19: b3) Deudores Diversos por Cobrar a Corto Plazo | B19: 56650 | C19: 17956 | E19: b1) Documentos Comerciales por Pagar a Corto Plazo | F19: 0 | G19: 0
A20: b4) Ingresos por Recuperar a Corto Plazo | B20: 0 | C20: 0 | E20: b2) Documentos con Contratistas por Obras Públicas por Pagar a Corto Plazo | F20: 0 | G20: 0
A21: b5) Deudores por Anticipos de la Tesorería a Corto Plazo | B21: 0 | C21: 0 | E21: b3) Otros Documentos por Pagar a Corto Plazo | F21: 0 | G21: 0
A22: b6) Préstamos Otorgados a Corto Plazo | B22: 0 | C22: 0 | E22: c. Porción a Corto Plazo de la Deuda Pública a Largo Plazo (c=c1+c2) | F22: =+F23+F24 -> 0 | G22: =+G23+G24 -> 0
A23: b7) Otros Derechos a Recibir Efectivo o Equivalentes a Corto Plazo | B23: 0 | C23: 0 | E23: c1) Porción a Corto Plazo de la Deuda Pública | F23: 0 | G23: 0
A24: c. Derechos a Recibir Bienes o Servicios (c=c1+c2+c3+c4+c5) | B24: =+B25+B26+B27+B28+B29 -> 0 | C24: 0 | E24: c2) Porción a Corto Plazo de Arrendamiento Financiero | F24: 0 | G24: 0
A25: c1) Anticipo a Proveedores por Adquisición de Bienes y Prestación de Servicios a Corto Plazo | B25: 0 | C25: 0 | E25: d. Títulos y Valores a Corto Plazo | F25: 0 | G25: 0
A26: c2) Anticipo a Proveedores por Adquisición de Bienes Inmuebles y Muebles a Corto Plazo | B26: 0 | C26: 0 | E26: e. Pasivos Diferidos a Corto Plazo (e=e1+e2+e3) | F26: =+F27+F28+F29 -> 0 | G26: =+G27+G28+G29 -> 0
A27: c3) Anticipo a Proveedores por Adquisición de Bienes Intangibles a Corto Plazo | B27: 0 | C27: 0 | E27: e1) Ingresos Cobrados por Adelantado a Corto Plazo | F27: 0 | G27: 0
A28: c4) Anticipo a Contratistas por Obras Públicas a Corto Plazo | B28: 0 | C28: 0 | E28: e2) Intereses Cobrados por Adelantado a Corto Plazo | F28: 0 | G28: 0
A29: c5) Otros Derechos a Recibir Bienes o Servicios a Corto Plazo | B29: 0 | C29: 0 | E29: e3) Otros Pasivos Diferidos a Corto Plazo | F29: 0 | G29: 0
A30: d. Inventarios (d=d1+d2+d3+d4+d5) | B30: =+B31+B32+B33+B34+B35 -> 0 | C30: =+C31+C32+C33+C34+C35 -> 0 | E30: f. Fondos y Bienes de Terceros en Garantía y/o Administración a Corto Plazo (f=f1+f2+f3+f4+f5+f6) | F30: =+F31+F32+F33+F34+F35+F36 -> 0 | G30: =+G31+G32+G33+G34+G35+G36 -> 0
A31: d1) Inventario de Mercancías para Venta | B31: 0 | C31: 0 | E31: f1) Fondos en Garantía a Corto Plazo | F31: 0 | G31: 0
A32: d2) Inventario de Mercancías Terminadas | B32: 0 | C32: 0 | E32: f2) Fondos en Administración a Corto Plazo | F32: 0 | G32: 0
A33: d3) Inventario de Mercancías en Proceso de Elaboración | B33: 0 | C33: 0 | E33: f3) Fondos Contingentes a Corto Plazo | F33: 0 | G33: 0
A34: d4) Inventario de Materias Primas, Materiales y Suministros para Producción | B34: 0 | C34: 0 | E34: f4) Fondos de Fideicomisos, Mandatos y Contratos Análogos a Corto Plazo | F34: 0 | G34: 0
A35: d5) Bienes en Tránsito | B35: 0 | C35: 0 | E35: f5) Otros Fondos de Terceros en Garantía y/o Administración a Corto Plazo | F35: 0 | G35: 0
A36: e. Almacenes | B36: 0 | C36: 0 | E36: f6) Valores y Bienes en Garantía a Corto Plazo | F36: 0 | G36: 0
A37: f. Estimación por Pérdida o Deterioro de Activos Circulantes (f=f1+f2) | B37: =+B38+B39 -> 0 | C37: =+C38+C39 -> 0 | E37: g. Provisiones a Corto Plazo (g=g1+g2+g3) | F37: =+F38+F39+F40 -> 0 | G37: =+G38+G39+G40 -> 0
A38: f1) Estimaciones para Cuentas Incobrables por Derechos a Recibir Efectivo o Equivalentes | B38: 0 | C38: 0 | E38: g1) Provisión para Demandas y Juicios a Corto Plazo | F38: 0 | G38: 0
A39: f2) Estimación por Deterioro de Inventarios | B39: 0 | C39: 0 | E39: g2) Provisión para Contingencias a Corto Plazo | F39: 0 | G39: 0
A40: g. Otros Activos Circulantes (g=g1+g2+g3+g4) | B40: =+B41+B42+B43+B44 -> 0 | C40: =+C41+C42+C43+C44 -> 0 | E40: g3) Otras Provisiones a Corto Plazo | F40: 0 | G40: 0
A41: g1) Valores en Garantía | B41: 0 | C41: 0 | E41: h. Otros Pasivos a Corto Plazo (h=h1+h2+h3) | F41: =+F42+F43+F44 -> 0 | G41: =+G42+G43+G44 -> 0
A42: g2) Bienes en Garantía (excluye depósitos de fondos) | B42: 0 | C42: 0 | E42: h1) Ingresos por Clasificar | F42: 0 | G42: 0
A43: g3) Bienes Derivados de Embargos, Decomisos, Aseguramientos y Dación en Pago | B43: 0 | C43: 0 | E43: h2) Recaudación por Participar | F43: 0 | G43: 0
A44: g4) Adquisición con Fondos de Terceros | B44: 0 | C44: 0 | E44: h3) Otros Pasivos Circulantes | F44: 0 | G44: 0
A46: IA. Total de Activos Circulantes (IA = a + b + c + d + e + f + g) | B46: 451540 | C46: =+C8+C16+C24+C30+C36+C37+C40 -> 95209 | E46: IIA. Total de Pasivos Circulantes (IIA = a + b + c + d + e + f + g + h) | F46: 14968 | G46: 25755
A48: Activo No Circulante | E48: Pasivo No Circulante
A49: a. Inversiones Financieras a Largo Plazo | B49: 0 | C49: 0 | E49: a. Cuentas por Pagar a Largo Plazo | F49: 0 | G49: 0
A50: b. Derechos a Recibir Efectivo o Equivalentes a Largo Plazo | B50: 0 | C50: 0 | E50: b. Documentos por Pagar a Largo Plazo | F50: 0 | G50: 0
A51: c. Bienes Inmuebles, Infraestructura y Construcciones en Proceso | B51: 0 | C51: 0 | E51: c. Deuda Pública a Largo Plazo | F51: 0 | G51: 0
A52: d. Bienes Muebles | B52: 105370 | C52: 281228 | E52: d. Pasivos Diferidos a Largo Plazo | F52: 0 | G52: 0
A53: e. Activos Intangibles | B53: 0 | C53: 0 | E53: e. Fondos y Bienes de Terceros en Garantía y/o en Administración a Largo Plazo | F53: 0 | G53: 0
A54: f. Depreciación, Deterioro y Amortización Acumulada de Bienes | B54: 0 | C54: 0 | E54: f. Provisiones a Largo Plazo | F54: 0 | G54: 0
A55: g. Activos Diferidos | B55: 0 | C55: 0
A56: h. Estimación por Pérdida o Deterioro de Activos no Circulantes | B56: 0 | C56: 0 | E56: IIB. Total de Pasivos No Circulantes (IIB = a + b + c + d + e + f) | F56: =+F49+F50+F51+F52+F53+F54 -> 0 | G56: =+G49+G50+G51+G52+G53+G54 -> 0
A57: i. Otros Activos no Circulantes | B57: 0 | C57: 0
E58: II. Total del Pasivo (II = IIA + IIB) | F58: =+F46+F56 -> 14968 | G58: =+G46+G56 -> 25755
A59: IB. Total de Activos No Circulantes (IB = a + b + c + d + e + f + g + h + i) | B59: =+B52 -> 105370 | C59: =+C52 -> 281228
E60: HACIENDA PÚBLICA/PATRIMONIO
A61: I. Total del Activo (I = IA + IB) | B61: 556910 | C61: =+C46+C59 -> 376437
E62: IIIA. Hacienda Pública/Patrimonio Contribuido (IIIA = a + b + c) | F62: =+F63+F64+F65 -> 0 | G62: =+G63+G64+G65 -> 0
E63: a. Aportaciones | F63: 0 | G63: 0
E64: b. Donaciones de Capital | F64: 0 | G64: 0
E65: c. Actualización de la Hacienda Pública/Patrimonio | F65: 0 | G65: 0
E67: IIIB. Hacienda Pública/Patrimonio Generado (IIIB = a + b + c + d + e) | F67: 514419 | G67: 333364
E68: a. Resultados del Ejercicio (Ahorro/ Desahorro) | F68: 484750 | G68: 68649
E69: b. Resultados de Ejercicios Anteriores | F69: 955 | G69: 805
E70: c. Revalúos | F70: 0 | G70: 0
E71: d. Reservas | F71: 0 | G71: 0
E72: e. Rectificaciones de Resultados de Ejercicios Anteriores | F72: 56238 | G72: 281228
E74: IIIC. Exceso o Insuficiencia en la Actualización de la Hacienda Pública/Patrimonio (IIIC=a+b) | F74: =+F75+F76 -> 0 | G74: =+G75+G76 -> 0
E75: a. Resultado por Posición Monetaria | F75: 0 | G75: 0
E76: b. Resultado por Tenencia de Activos no Monetarios | F76: 0 | G76: 0
E78: III. Total Hacienda Pública/Patrimonio (III = IIIA + IIIB + IIIC) | F78: 541943 | G78: 350682
E80: IV. Total del Pasivo y Hacienda Pública/Patrimonio (IV = II + III) | F80: =+F58+F78-1 -> 556910 | G80: =+G58+G78 -> 376437

Sheet 2
A1: CONSEJO ESTATAL DE POBLACION
A2: Informe Analítico de la Deuda Pública y Otros Pasivos - LDF
A3: Del 1 de enero al 30 de septiembre de 2017
A4: (PESOS)
A5: Denominación de la Deuda Pública y Otros Pasivos (c) | C5: Saldo | D5: Disposiciones del Periodo (e) | E5: Amortizaciones del Periodo (f) | F5: Revaluaciones, Reclasificaciones y Otros Ajustes (g) | G5: Saldo Final del Periodo (h) | H5: Pago de Intereses del Periodo (i) | I5: Pago de Comisiones y demás costos asociados durante el Periodo (j)
C6: al 31 de diciembre de 2015 (d) | G6: h=d+e-f+g
A8: 1. Deuda Pública (1=A+B) | C8: =+C9+C13 -> 0 | D8: =+D9+D13 -> 0 | E8: 0 | F8: 0 | G8: 0 | H8: 0 | I8: 0
A9: A. Corto Plazo (A=a1+a2+a3) | C9: =+C10+C11+C12 -> 0 | D9: =+D10+D11+D12 -> 0 | E9: 0 | F9: 0 | G9: 0 | H9: 0 | I9: 0
B10: a1) Instituciones de Crédito | C10: 0 | D10: 0 | E10: 0 | F10: 0 | G10: =+C10+D10-E10+F10 -> 0 | H10: 0 | I10: 0
B11: a2) Títulos y Valores | C11: 0 | D11: 0 | E11: 0 | F11: 0 | G11: 0 | H11: 0 | I11: 0
B12: a3) Arrendamientos Financieros | C12: 0 | D12: 0 | E12: 0 | F12: 0 | G12: 0 | H12: 0 | I12: 0
A13: B. Largo Plazo (B=b1+b2+b3) | C13: =+C14+C15+C16 -> 0 | D13: =+D14+D15+D16 -> 0 | E13: 0 | F13: 0 | G13: 0 | H13: 0 | I13: 0
B14: b1) Instituciones de Crédito | C14: 0 | D14: 0 | E14: 0 | F14: 0 | G14: 0 | H14: 0 | I14: 0
B15: b2) Títulos y Valores | C15: 0 | D15: 0 | E15: 0 | F15: 0 | G15: 0 | H15: 0 | I15: 0
B16: b3) Arrendamientos Financieros | C16: 0 | D16: 0 | E16: 0 | F16: 0 | G16: 0 | H16: 0 | I16: 0
A17: 2. Otros Pasivos | C17: 109566 | D17: 1814784 | E17: 1909382 | F17: 0 | G17: 14968 | H17: 0 | I17: 0
G18: 0
A19: 3. Total de la Deuda Pública y Otros Pasivos (3=1+2) | C19: =+C8+C17 -> 109566 | D19: =+D8+D17 -> 1814784 | E19: 1909382 | F19: 0 | G19: 14698 | H19: 0 | I19: 0
A21: 4. Deuda Contingente 1 (informativo)
A22: A. Deuda Contingente 1 | C22: 0 | D22: 0 | E22: 0 | F22: 0 | G22: =+C22+D22-E22+F22 -> 0 | H22: 0 | I22: 0
A23: B. Deuda Contingente 2 | C23: 0 | D23: 0 | E23: 0 | F23: 0 | G23: =+C23+D23-E23+F23 -> 0 | H23: 0 | I23: 0
A24: C. Deuda Contingente XX | C24: 0 | D24: 0 | E24: 0 | F24: 0 | G24: 0 | H24: 0 | I24: 0
A26: 5. Valor de Instrumentos Bono Cupón Cero 2 (Informativo)
A27: A. Instrumento Bono Cupón Cero 1 | C27: 0 | D27: 0 | E27: 0 | F27: 0 | G27: =+C27+D27-E27+F27 -> 0 | H27: 0 | I27: 0
A28: B. Instrumento Bono Cupón Cero 2 | C28: 0 | D28: 0 | E28: 0 | F28: 0 | G28: =+C28+D28-E28+F28 -> 0 | H28: 0 | I28: 0
A29: C. Instrumento Bono Cupón Cero XX | C29: 0 | D29: 0 | E29: 0 | F29: 0 | G29: 0 | H29: 0 | I29: 0
B32: Obligaciones a Corto Plazo (k) | C32: Monto | D32: Plazo | E32: Tasa de Interés | F32: Comisiones y Costos Relacionados (o) | G32: Tasa Efectiva
C33: Contratado (l) | D33: Pactado | E33: (n) | G33: (p)
D34: (m)
B35: 6. Obligaciones a Corto Plazo (Informativo)
B36: A. Crédito 1 | C36: 0 | D36: 0 | E36: 0 | F36: 0 | G36: 0
B37: B. Crédito 2 | C37: 0 | D37: 0 | E37: 0 | F37: 0 | G37: 0
B38: C. Crédito XX | C38: 0 | D38: 0 | E38: 0 | F38: 0 | G38: 0

Sheet 3
A1: CONSEJO ESTATAL DE POBLACION
A2: Informe Analítico de Obligaciones Diferentes de Financiamientos – LDF
A3: Del 1 de enero al 30 de septiembre de 2017 (b)
A4: (PESOS)
A5: Denominación de las Obligaciones Diferentes de Financiamiento (c) | B5: Fecha del Contrato (d) | C5: Fecha de inicio de operación del proyecto (e) | D5: Fecha de vencimiento (f) | E5: Monto de la inversión pactado (g) | F5: Plazo pactado (h) | G5: Monto promedio mensual del pago de la contraprestación (i) | H5: Monto promedio mensual del pago de la contraprestación correspondiente al pago de inversión (j) | I5: Monto pagado de la inversión al 31 de diciembre de 2016 (k) | J5: Monto pagado de la inversión actualizado al 31 de diciembre de 2016 (l) | K5: Saldo pendiente por pagar de la inversión al 31 de diciembre de 2016 (m = g – l)
A7: A. Asociaciones Público Privadas (APP’s) (A=a+b+c+d) | E7: =+E8+E9+E10+E11 -> 0 | G7: 0 | H7: 0 | I7: 0 | J7: 0 | K7: 0
A8: a) APP 1 | E8: 0 | G8: 0 | H8: 0 | I8: 0 | J8: 0 | K8: 0
A9: b) APP 2 | E9: 0 | G9: 0 | H9: 0 | I9: 0 | J9: 0 | K9: 0
A10: c) APP 3 | E10: 0 | G10: 0 | H10: 0 | I10: 0 | J10: 0 | K10: 0
A11: d) APP XX | E11: 0 | G11: 0 | H11: 0 | I11: 0 | J11: 0 | K11: 0
A13: B. Otros Instrumentos (B=a+b+c+d) | E13: =+E14+E15+E16+E17 -> 0 | G13: 0 | H13: 0 | I13: 0 | J13: 0 | K13: 0
A14: a) Otro Instrumento 1 | E14: 0 | G14: 0 | H14: 0 | I14: 0 | J14: 0 | K14: 0
A15: b) Otro Instrumento 2 | E15: 0 | G15: 0 | H15: 0 | I15: 0 | J15: 0 | K15: 0
A16: c) Otro Instrumento 3 | E16: 0 | G16: 0 | H16: 0 | I16: 0 | J16: 0 | K16: 0
A17: d) Otro Instrumento XX | E17: 0 | G17: 0 | H17: 0 | I17: 0 | J17: 0 | K17: 0
A19: C. Total de Obligaciones Diferentes de Financiamiento (C=A+B) | E19: =+E7+E13 -> 0 | G19: 0 | H19: 0 | I19: 0 | J19: 0 | K19: 0

Sheet 4
A1: CONSEJO ESTATAL DE POBLACION
A2: Balance Presupuestario - LDF
A3: Del 1 de enero al 30 de septiembre de 2017 (b)
A4: (PESOS)
A6: Concepto (c) | C6: Estimado/ | D6: Devengado | E6: Recaudado/
C7: Aprobado (d) | E7: Pagado
B9: A. Ingresos Totales (A = A1+A2+A3) | C9: =+C10+C11+C12 -> 2395000 | D9: 2100000 | E9: 2100000
B10: A1. Ingresos de Libre Disposición | C10: 2395000 | D10: 2100000 | E10: 2100000
B11: A2. Transferencias Federales Etiquetadas | C11: =+'5'!D68 -> 0 | D11: 0 | E11: 0
B12: A3. Financiamiento Neto | C12: =+'5'!D70 -> 0 | D12: =+'5'!G70 -> 0 | E12: =+'5'!H70 -> 0
B14: B. Egresos Presupuestarios1 (B = B1+B2) | C14: =+C15+C16 -> 2695000 | D14: 1664382 | E14: 1664382
B15: B1. Gasto No Etiquetado (sin incluir Amortización de la Deuda Pública) | C15: 2695000 | D15: 1664382 | E15: 1664382
B16: B2. Gasto Etiquetado (sin incluir Amortización de la Deuda Pública)
B18: C. Remanentes del Ejercicio Anterior ( C = C1 + C2 ) | C18: =+C19+C20 -> 0 | D18: =+D19+D20 -> 0 | E18: =+E19+E20 -> 0
B19: C1. Remanentes de Ingresos de Libre Disposición aplicados en el periodo | C19: 0 | D19: 0 | E19: 0
B20: C2. Remanentes de Transferencias Federales Etiquetadas aplicados en el periodo | C20: 0 | D20: 0 | E20: 0
B22: I. Balance Presupuestario (I = A – B + C) | C22: -300000 | D22: 435618 | E22: 435618
B23: II. Balance Presupuestario sin Financiamiento Neto (II = I - A3) | C23: =+C22-C12 -> -300000 | D23: =+D22-D12 -> 435618 | E23: 435618
B24: III. Balance Presupuestario sin Financiamiento Neto y sin Remanentes del Ejercicio Anterior (III= II - C) | C24: =+C23-C18 -> -300000 | D24: =+D23-D18 -> 435618 | E24: 435618
A27: Concepto | C27: Aprobado | D27: Devengado | E27: Pagado
B29: E. Intereses, Comisiones y Gastos de la Deuda (E = E1+E2) | C29: =+C30+C31 -> 0 | D29: =+D30+D31 -> 0 | E29: 0
B30: E1. Intereses, Comisiones y Gastos de la Deuda con Gasto No Etiquetado | C30: 0 | D30: 0 | E30: 0
B31: E2. Intereses, Comisiones y Gastos de la Deuda con Gasto Etiquetado | C31: 0 | D31: 0 | E31: 0
B33: IV. Balance Primario (IV = III + E) | C33: =+C24+C29 -> -300000 | D33: =+D24+D29 -> 435618 | E33: 435618
A36: Concepto | C36: Estimado/ Aprobado | D36: Devengado | E36: Recaudado/
E37: Pagado
B39: F. Financiamiento (F = F1 + F2) | C39: =+C40+C41 -> 0 | D39: =+D40+D41 -> 0 | E39: 0
B40: F1. Financiamiento con Fuente de Pago de Ingresos de Libre Disposición | C40: 0 | D40: 0 | E40: 0
B41: F2. Financiamiento con Fuente de Pago de Transferencias Federales Etiquetadas
B42: G. Amortización de la Deuda (G = G1 + G2) | C42: =+C43+C44 -> 0 | D42: =+D43+D44 -> 0 | E42: 0
B43: G1. Amortización de la Deuda Pública con Gasto No Etiquetado | C43: 0 | D43: 0 | E43: 0
B44: G2. Amortización de la Deuda Pública con Gasto Etiquetado | C44: 0 | D44: 0 | E44: 0
B45: A3. Financiamiento Neto (A3 = F – G ) | C45: =+C39-C42 -> 0 | D45: =+D39-D42 -> 0 | E45: =+E39-E42 -> 0
A48: Concepto | C48: Estimado/ | D48: Devengado | E48: Recaudado/
C49: Aprobado | E49: Pagado
B51: A1. Ingresos de Libre Disposición | C51: =+C10 -> 2395000 | D51: =+D10 -> 2100000 | E51: 2100000
B52: A3.1 Financiamiento Neto con Fuente de Pago de Ingresos de Libre Disposición (A3.1 = F1 – G1) | C52: 0 | D52: 0 | E52: =+E53+E54 -> 0
B53: F1. Financiamiento con Fuente de Pago de Ingresos de Libre Disposición | C53: 0 | D53: 0 | E53: 0
B54: G1. Amortización de la Deuda Pública con Gasto No Etiquetado | C54: 0 | D54: 0 | E54: 0
B56: B1. Gasto No Etiquetado (sin incluir Amortización de la Deuda Pública) | C56: 0 | D56: 0 | E56: 0
B58: C1. Remanentes de Ingresos de Libre Disposición aplicados en el periodo | C58: 0 | D58: 0 | E58: 0
B60: V. Balance Presupuestario de Recursos Disponibles (V = A1 + A3.1 – B 1 + C1) | C60: =+C51+C52-C56-C58 -> 2395000 | D60: =+D51+D52-D56-D58 -> 2100000 | E60: 2100000
B61: VI. Balance Presupuestario de Recursos Disponibles sin Financiamiento Neto (VI = V – A3.1) | C61: =+C60-C52 -> 2395000 | D61: =+D60-D52 -> 2100000 | E61: 2100000
A64: Concepto | C64: Estimado/ Aprobado | D64: Devengado | E64: Recaudado/
E65: Pagado
B67: A2. Transferencias Federales Etiquetadas | C67: 0 | D67: 0 | E67: 0
B68: A3.2 Financiamiento Neto con Fuente de Pago de Transferencias Federales Etiquetadas (A3.2 = F2 – G2) | C68: 0 | D68: 0 | E68: 0
B69: F2. Financiamiento con Fuente de Pago de Transferencias Federales Etiquetadas | C69: 0 | D69: 0 | E69: 0
B70: G2. Amortización de la Deuda Pública con Gasto Etiquetado | C70: 0 | D70: 0 | E70: 0
B72: B2. Gasto Etiquetado (sin incluir Amortización de la Deuda Pública) | C72: 2695000 | D72: 1664382 | E72: 1664382
B74: C2. Remanentes de Transferencias Federales Etiquetadas aplicados en el periodo | C74: 0 | D74: 0 | E74: 0
B76: VII. Balance Presupuestario de Recursos Etiquetados (VII = A2 + A3.2 – B2 + C2) | C76: =+C67+C68-C72+C74 -> -2695000 | D76: =+D67+D68-D72+D74 -> -1664382 | E76: -1664382
B77: VIII. Balance Presupuestario de Recursos Etiquetados sin Financiamiento Neto (VIII = VII – A3.2) | C77: =+C76-C68 -> -2695000 | D77: =+D76-D68 -> -1664382 | E77: -1664382

Sheet 5
A1: CONSEJO ESTATAL DE POBLACION
A2: Estado Analítico de Ingresos Detallado - LDF
A3: Del 1 de enero al 30 de septiembre de 2017 (b)
A4: (PESOS)
D5: Ingreso | I5: Diferencia (e)
A6: Concepto | D6: Estimado (d) | E6: Ampliaciones/ (Reducciones) | F6: Modificado | G6: Devengado | H6: Recaudado
A7: (c)
A9: Ingresos de Libre Disposición
B10: A. Impuestos | D10: 0 | E10: 0 | F10: =+D10+E10 -> 0 | G10: 0 | H10: 0 | I10: =+H10-D10 -> 0
B11: B. Cuotas y Aportaciones de Seguridad Social | D11: 0 | E11: 0 | F11: =+D11+E11 -> 0 | G11: 0 | H11: 0 | I11: =+H11-D11 -> 0
B12: C. Contribuciones de Mejoras | D12: 0 | E12: 0 | F12: 0 | G12: 0 | H12: 0 | I12: 0
B13: D. Derechos | D13: 0 | E13: 0 | F13: 0 | G13: 0 | H13: 0 | I13: 0
B14: E. Productos | D14: 0 | E14: 0 | F14: 0 | G14: 0 | H14: 0 | I14: 0
B15: F. Aprovechamientos | D15: 0 | E15: 0 | F15: 0 | G15: 0 | H15: 0 | I15: 0
B16: G. Ingresos por Ventas de Bienes y Servicios | E16: 0 | F16: 0 | G16: 0 | H16: 0 | I16: 0
B17: H. Participaciones | D17: =+D19+D20+D21+D22+D23+D24+D25+D26+D27+D28+D29 -> 2395000 | E17: =+E19+E20+E21+E22+E23+E24+E25+E26+E27+E28+E29 -> 300000 | F17: 2695000 | G17: 2100000 | H17: 2100000 | I17: 595000
B18: (H=h1+h2+h3+h4+h5+h6+h7+h8+h9+h10+h11)
C19: h1) Fondo General de Participaciones | D19: 2395000 | E19: 300000 | F19: 2695000 | G19: 2100000 | H19: 2100000 | I19: 595000
C20: h2) Fondo de Fomento Municipal | D20: 0 | E20: 0 | F20: =+D20+E20 -> 0 | G20: 0 | H20: 0 | I20: =+H20-D20 -> 0
C21: h3) Fondo de Fiscalización y Recaudación | D21: 0 | E21: 0 | F21: 0 | G21: 0 | H21: 0 | I21: 0
C22: h4) Fondo de Compensación | D22: 0 | E22: 0 | F22: 0 | G22: 0 | H22: 0 | I22: 0
C23: h5) Fondo de Extracción de Hidrocarburos | D23: 0 | E23: 0 | F23: 0 | G23: 0 | H23: 0 | I23: 0
C24: h6) Impuesto Especial Sobre Producción y Servicios | D24: 0 | E24: 0 | F24: 0 | G24: 0 | H24: 0 | I24: 0
C25: h7) 0.136% de la Recaudación Federal Participable | D25: 0 | E25: 0 | F25: 0 | G25: 0 | H25: 0 | I25: 0 | L25: 6101499 | M25: -223407.18 | N25: =+L25+M25 -> 5878091.82 | O25: 5654684.64 | S25: es convenio federal, pero no esta etiquetado especificamente a que se aplica
C26: h8) 3.17% Sobre Extracción de Petróleo | D26: 0 | E26: 0 | F26: 0 | G26: 0 | H26: 0 | I26: 0 | L26: 584868 | M26: 0 | N26: =+L26+M26 -> 584868 | O26: 4245784.89
C27: h9) Gasolinas y Diésel | D27: 0 | E27: 0 | F27: 0 | G27: 0 | H27: 0 | I27: 0 | M27: 1469500 | N27: 1469500 | O27: 1102125
C28: h10) Fondo del Impuesto Sobre la Renta | D28: 0 | E28: 0 | F28: 0 | G28: 0 | H28: 0 | I28: 0 | M28: 62000 | N28: 62000 | O28: 62000
C29: h11) Fondo de Estabilización de los Ingresos de las Entidades Federativas | D29: 0 | E29: 0 | F29: 0 | G29: 0 | H29: 0 | I29: 0 | M29: 269625 | N29: 269625 | O29: 269600
B30: I. Incentivos Derivados de la Colaboración Fiscal (I=i1+i2+i3+i4+i5) | D30: =+D31+D32+D33+D34 -> 0 | E30: =+E31+E32+E33+E34 -> 0 | F30: 0 | G30: 0 | H30: 0 | I30: =+H30-D30 -> 0 | M30: 109875 | N30: 109875 | O30: 109840 | P30: =SUM(L25:L30) -> 6686367 | Q30: =SUM(M25:M30) -> 1687592.82 | R30: =SUM(N25:N30) -> 8373959.82 | S30: =SUM(O25:O30) -> 11444034.53
C31: i1) Tenencia o Uso de Vehículos | D31: 0 | E31: 0 | F31: 0 | G31: 0 | H31: 0 | I31: 0 | M31: 192600 | N31: 192600 | O31: 192600
C32: i2) Fondo de Compensación ISAN | D32: 0 | E32: 0 | F32: 0 | G32: 0 | H32: 0 | I32: 0 | M32: 124627 | N32: 124627 | O32: 124627 | P32: =SUM(L31:L32) -> 0 | Q32: =SUM(M31:M32) -> 317227 | R32: 317227 | S32: =SUM(N31:N32) -> 317227
C33: i3) Impuesto Sobre Automóviles Nuevos | D33: 0 | E33: 0 | F33: 0 | G33: 0 | H33: 0 | I33: 0
C34: i4) Fondo de Compensación de Repecos-Intermedios | D34: 0 | E34: 0 | F34: 0 | G34: 0 | H34: 0 | I34: 0
C35: i5) Otros Incentivos Económicos | D35: 0 | E35: 0 | F35: 0 | G35: 0 | H35: 0 | I35: 0
B36: J. Transferencias | D36: 0 | E36: 0 | F36: 0 | G36: 0 | H36: 0 | I36: 0
B37: K. Convenios | D37: =+D38 -> 0 | E37: =+E38 -> 0 | F37: 0 | G37: 0 | H37: 0 | I37: 0
C38: k1) Otros Convenios y Subsidios | D38: 0 | E38: 0 | F38: 0 | G38: 0 | H38: 0 | I38: 0
B39: L. Otros Ingresos de Libre Disposición (L=l1+l2) | D39: =+D40+D41 -> 0 | E39: =+E40+E41 -> 0 | F39: 0 | G39: 0 | H39: 0 | I39: 0
C40: l1) Participaciones en Ingresos Locales | D40: 0 | E40: 0 | F40: 0 | G40: 0 | H40: 0 | I40: 0
C41: l2) Otros Ingresos de Libre Disposición | D41: 0 | E41: 0 | F41: 0 | G41: 0 | H41: 0 | I41: 0
A43: I. Total de Ingresos de Libre Disposición
A44: (I=A+B+C+D+E+F+G+H+I+J+K+L) | D44: =+D10+D11+D12+D13+D14+D15+D16+D17+D30+D36+D37+D39 -> 2395000 | E44: =+E10+E11+E12+E13+E14+E15+E16+E17+E30+E36+E37+E39 -> 300000 | F44: 2695000 | G44: 2100000 | H44: 2100000 | I44: 595000
A45: Ingresos Excedentes de Ingresos de Libre Disposición
A47: Transferencias Federales Etiquetadas
B48: A. Aportaciones (A=a1+a2+a3+a4+a5+a6+a7+a8) | D48: =+D49+D50+D51+D52+D53+D54+D55+D56 -> 0 | E48: =+E49+E50+E51+E52+E53+E54+E55+E56 -> 0 | F48: =+D48+E48 -> 0 | G48: 0 | H48: 0 | I48: =+H48-D48 -> 0
C49: a1) Fondo de Aportaciones para la Nómina Educativa y Gasto Operativo | D49: 0 | E49: 0 | F49: =+D49+E49 -> 0 | G49: 0 | H49: 0 | I49: 0
C50: a2) Fondo de Aportaciones para los Servicios de Salud | D50: 0 | E50: 0 | F50: =+D50+E50 -> 0 | G50: 0 | H50: 0 | I50: =+H50-D50 -> 0
C51: a3) Fondo de Aportaciones para la Infraestructura Social | D51: 0 | E51: 0 | F51: 0 | G51: 0 | H51: 0 | I51: 0
C52: a4) Fondo de Aportaciones para el Fortalecimiento de los Municipios y de las Demarcaciones Territoriales del Distrito Federal | D52: 0 | E52: 0 | F52: 0 | G52: 0 | H52: 0 | I52: 0
C53: a5) Fondo de Aportaciones Múltiples | D53: 0 | E53: 0 | F53: 0 | G53: 0 | H53: 0 | I53: 0
C54: a6) Fondo de Aportaciones para la Educación Tecnológica y de Adultos | D54: 0 | E54: 0 | F54: 0 | G54: 0 | H54: 0 | I54: 0
C55: a7) Fondo de Aportaciones para la Seguridad Pública de los Estados y del Distrito Federal | D55: 0 | E55: 0 | F55: 0 | G55: 0 | H55: 0 | I55: 0
C56: a8) Fondo de Aportaciones para el Fortalecimiento de las Entidades Federativas | D56: 0 | E56: 0 | F56: 0 | G56: 0 | H56: 0 | I56: 0
B57: B. Convenios (B=b1+b2+b3+b4) | D57: =+D58+D59+D60+D61 -> 0 | E57: =+E58+E59+E60+E61 -> 0 | F57: 0 | G57: 0 | H57: 0 | I57: 0
C58: b1) Convenios de Protección Social en Salud | D58: 0 | E58: 0 | F58: 0 | G58: 0 | H58: 0 | I58: 0
C59: b2) Convenios de Descentralización | D59: 0 | E59: 0 | F59: =+D59+E59 -> 0 | G59: 0 | H59: 0 | I59: =+H59-D59 -> 0
C60: b3) Convenios de Reasignación | D60: 0 | E60: 0 | F60: 0 | G60: 0 | H60: 0 | I60: 0
C61: b4) Otros Convenios y Subsidios | D61: 0 | E61: 0 | F61: 0 | G61: 0 | H61: 0 | I61: 0
B62: C. Fondos Distintos de Aportaciones (C=c1+c2) | D62: =+D63+D64 -> 0 | E62: =+E63+E64 -> 0 | F62: 0 | G62: 0 | H62: 0 | I62: 0
C63: c1) Fondo para Entidades Federativas y Municipios Productores de Hidrocarburos | D63: 0 | E63: 0 | F63: 0 | G63: 0 | H63: 0 | I63: 0
C64: c2) Fondo Minero | D64: 0 | E64: 0 | F64: 0 | G64: 0 | H64: 0 | I64: 0
B65: D. Transferencias, Subsidios y Subvenciones, y Pensiones y Jubilaciones | D65: 0 | E65: 0 | F65: 0 | G65: 0 | H65: 0 | I65: 0
B66: E. Otras Transferencias Federales Etiquetadas | D66: 0 | E66: 0 | F66: 0 | G66: 0 | H66: 0 | I66: 0
A68: II. Total de Transferencias Federales Etiquetadas (II = A + B + C + D + E) | D68: =+D48+D57+D62+D65+D66 -> 0 | E68: =+E48+E57+E62+E65+E66 -> 0 | F68: =+D68+E68 -> 0 | G68: 0 | H68: =+H48+H57+H62+H65+H66 -> 0 | I68: 0
A70: III. Ingresos Derivados de Financiamientos (III = A) | D70: =+D48 -> 0 | E70: =+E71 -> 0 | F70: =+D70+E70 -> 0 | G70: =+E70+F70 -> 0 | H70: 0 | I70: 0
B71: A. Ingresos Derivados de Financiamientos | D71: 0 | E71: 0 | F71: 0 | G71: 0 | H71: 0 | I71: 0
A73: IV. Total de Ingresos (IV = I + II + III) | D73: =+D44+D68+D70 -> 2395000 | E73: =+E44+E68+E70 -> 300000 | F73: 2695000 | G73: =+G44+G68+G70 -> 2100000 | H73: =+H44+H68+H70 -> 2100000 | I73: =+I39+I40+I41+I42+I43+I44+I45+I46+I59+I65+I66+I68 -> 595000
B75: Datos Informativos
B76: 1. Ingresos Derivados de Financiamientos con Fuente de Pago de Ingresos de Libre Disposición | D76: 0 | E76: 0 | F76: =+D76+E76 -> 0 | G76: 0 | H76: 0 | I76: =+H76-D76 -> 0
B77: 2. Ingresos Derivados de Financiamientos con Fuente de Pago de Transferencias Federales Etiquetadas | D77: 0 | E77: 0 | F77: 0 | G77: 0 | H77: 0 | I77: 0
B78: 3. Ingresos Derivados de Financiamientos (3 = 1 + 2) | D78: =+D76+D77 -> 0 | E78: =+E76+E77 -> 0 | F78: =+D78+E78 -> 0 | G78: 0 | H78: 0 | I78: =+H78-D78 -> 0

Sheet 6A
A1: CONSEJO ESTATAL DE POBLACION
A2: Estado Analítico del Ejercicio del Presupuesto de Egresos Detallado - LDF
A3: Clasificación por Objeto del Gasto (Capítulo y Concepto)
A4: Del 1 de enero al 30 de septiembre de 2017 (b)
A5: (PESOS)
A6: Concepto (c) | C6: Egresos | H6: Subejercicio (e)
C7: Aprobado (d) | D7: Ampliaciones/ (Reducciones) | E7: Modificado | F7: Devengado | G7: Pagado
A8: I. Gasto No Etiquetado (I=A+B+C+D+E+F+G+H+I) | C8: 2695000 | D8: =+D9+D17+D27+D37+D47+D57+D61+D70+D75 -> 0 | E8: 2695000 | F8: 1664382 | G8: 1664382 | H8: 1030618
A9: A. Servicios Personales (A=a1+a2+a3+a4+a5+a6+a7) | C9: 1691000 | D9: =+D10+D11+D12+D13+D14+D15+D16 -> 0 | E9: 1691000 | F9: 1040224 | G9: 1040224 | H9: 650776
B10: a1) Remuneraciones al Personal de Carácter Permanente | C10: 1140000 | D10: 0 | E10: 1140000 | F10: 801012 | G10: 801012 | H10: =+E10-F10 -> 338988
B11: a2) Remuneraciones al Personal de Carácter Transitorio | C11: 0 | D11: 0 | E11: =+C11+D11 -> 0 | F11: 0 | G11: 0 | H11: =+E11-F11 -> 0
B12: a3) Remuneraciones Adicionales y Especiales | C12: 255000 | D12: 0 | E12: 255000 | F12: 53943 | G12: 53943 | H12: 201057
B13: a4) Seguridad Social | C13: 52000 | D13: 0 | E13: 52000 | F13: 35512 | G13: 35512 | H13: 16488
B14: a5) Otras Prestaciones Sociales y Económicas | C14: 244000 | D14: 0 | E14: 244000 | F14: 149757 | G14: 149757 | H14: 94243
B15: a6) Previsiones | C15: 0 | D15: 0 | E15: 0 | F15: 0 | G15: 0 | H15: 0
B16: a7) Pago de Estímulos a Servidores Públicos | C16: 0 | D16: 0 | E16: 0 | F16: 0 | G16: 0 | H16: 0
A17: B. Materiales y Suministros (B=b1+b2+b3+b4+b5+b6+b7+b8+b9) | C17: 370000 | D17: =+D18+D19+D20+D21+D22+D23+D24+D25+D26 -> 0 | E17: 370000 | F17: 267436 | G17: 267436 | H17: 102564
B18: b1) Materiales de Administración, Emisión de Documentos y Artículos Oficiales | C18: 276000 | D18: 0 | E18: 276000 | F18: 195086 | G18: 195086 | H18: 80914
B19: b2) Alimentos y Utensilios | C19: 0 | D19: 0 | E19: =+C19+D19 -> 0 | F19: 0 | G19: 0 | H19: 0
B20: b3) Materias Primas y Materiales de Producción y Comercialización | C20: 0 | D20: 0 | E20: 0 | F20: 0 | G20: 0 | H20: 0
B21: b4) Materiales y Artículos de Construcción y de Reparación | C21: 0 | D21: 0 | E21: 0 | F21: 0 | G21: 0 | H21: 0
B22: b5) Productos Químicos, Farmacéuticos y de Laboratorio | C22: 0 | D22: 0 | E22: 0 | F22: 0 | G22: 0 | H22: 0
B23: b6) Combustibles, Lubricantes y Aditivos | C23: 94000 | D23: 0 | E23: 94000 | F23: 72350 | G23: 72350 | H23: 21650
B24: b7) Vestuario, Blancos, Prendas de Protección y Artículos Deportivos | C24: 0 | D24: 0 | E24: =+C24+D24 -> 0 | F24: 0 | G24: 0 | H24: 0
B25: b8) Materiales y Suministros Para Seguridad | C25: 0 | D25: 0 | E25: 0 | F25: 0 | G25: 0 | H25: 0
B26: b9) Herramientas, Refacciones y Accesorios Menores | C26: 0 | D26: 0 | E26: 0 | F26: 0 | G26: 0 | H26: 0
A27: C. Servicios Generales (C=c1+c2+c3+c4+c5+c6+c7+c8+c9) | C27: 544000 | D27: =+D28+D29+D30+D31+D32+D33+D34+D35+D36 -> 0 | E27: 544000 | F27: 307590 | G27: 307590 | H27: 236410
B28: c1) Servicios Básicos | C28: 54000 | D28: 0 | E28: 54000 | F28: 19611 | G28: 19611 | H28: =+E28-F28 -> 34389
B29: c2) Servicios de Arrendamiento | C29: 0 | D29: 0 | E29: =+C29+D29 -> 0 | F29: 0 | G29: 0 | H29: =+E29-F29 -> 0
B30: c3) Servicios Profesionales, Científicos, Técnicos y Otros Servicios | C30: 47000 | D30: 0 | E30: 47000 | F30: 522 | G30: 522 | H30: 46478
B31: c4) Servicios Financieros, Bancarios y Comerciales | C31: 20000 | D31: 0 | E31: 20000 | F31: 9559 | G31: 9559 | H31: 10441
B32: c5) Servicios de Instalación, Reparación, Mantenimiento y Conservación | C32: 62000 | D32: 0 | E32: 62000 | F32: 27859 | G32: 27859 | H32: 34141
B33: c6) Servicios de Comunicación Social y Publicidad | C33: 9000 | D33: 0 | E33: 9000 | F33: 0 | G33: 0 | H33: 9000
B34: c7) Servicios de Traslado y Viáticos | C34: 75000 | D34: 0 | E34: 75000 | F34: 44615 | G34: 44615 | H34: 30385
B35: c8) Servicios Oficiales | C35: 224000 | D35: 0 | E35: 224000 | F35: 176283 | G35: 176283 | H35: 47717
B36: c9) Otros Servicios Generales | C36: 53000 | D36: 0 | E36: 53000 | F36: 29142 | G36: 29142 | H36: 23858
A37: D. Transferencias, Asignaciones, Subsidios y Otras Ayudas (D=d1+d2+d3+d4+d5+d6+d7+d8+d9) | C37: =+C38+C39+C40+C41+C42+C43+C44+C45+C46 -> 0 | D37: =+D38+D39+D40+D41+D42+D43+D44+D45+D46 -> 0 | E37: 0 | F37: 0 | G37: 0
B38: d1) Transferencias Internas y Asignaciones al Sector Público | C38: 0 | D38: 0 | E38: =+C38+D38 -> 0 | F38: 0 | G38: 0 | H38: =+E38-F38 -> 0
B39: d2) Transferencias al Resto del Sector Público | C39: 0 | D39: 0 | E39: 0 | F39: 0 | G39: 0 | H39: 0
B40: d3) Subsidios y Subvenciones | C40: 0 | D40: 0 | E40: 0 | F40: 0 | G40: 0 | H40: 0
B41: d4) Ayudas Sociales | C41: 0 | D41: 0 | E41: 0 | F41: 0 | G41: 0 | H41: 0
B42: d5) Pensiones y Jubilaciones | C42: 0 | D42: 0 | E42: 0 | F42: 0 | G42: 0 | H42: 0
B43: d6) Transferencias a Fideicomisos, Mandatos y Otros Análogos | C43: 0 | D43: 0 | E43: 0 | F43: 0 | G43: 0 | H43: 0
B44: d7) Transferencias a la Seguridad Social | C44: 0 | D44: 0 | E44: 0 | F44: 0 | G44: 0 | H44: 0
B45: d8) Donativos | C45: 0 | D45: 0 | E45: 0 | F45: 0 | G45: 0 | H45: 0
B46: d9) Transferencias al Exterior | C46: 0 | D46: 0 | E46: 0 | F46: 0 | G46: 0 | H46: 0
A47: E. Bienes Muebles, Inmuebles e Intangibles (E=e1+e2+e3+e4+e5+e6+e7+e8+e9) | C47: =+C48+C49+C50+C51+C52+C53+C54+C55+C56 -> 90000 | D47: =+D48+D49+D50+D51+D52+D53+D54+D55+D56 -> 0 | E47: 90000 | F47: 49132 | G47: 49132 | H47: 40868
B48: e1) Mobiliario y Equipo de Administración | C48: 90000 | D48: 0 | E48: =+C48+D48 -> 90000 | F48: 49132 | G48: 49132 | H48: =+E48-F48 -> 40868
B49: e2) Mobiliario y Equipo Educacional y Recreativo | C49: 0 | D49: 0 | E49: 0 | F49: 0 | G49: 0 | H49: 0
B50: e3) Equipo e Instrumental Médico y de Laboratorio | C50: 0 | D50: 0 | E50: 0 | F50: 0 | G50: 0 | H50: 0
B51: e4) Vehículos y Equipo de Transporte | C51: 0 | D51: 0 | E51: 0 | F51: 0 | G51: 0 | H51: 0
B52: e5) Equipo de Defensa y Seguridad | C52: 0 | D52: 0 | E52: 0 | F52: 0 | G52: 0 | H52: 0
B53: e6) Maquinaria, Otros Equipos y Herramientas | C53: 0 | D53: 0 | E53: 0 | F53: 0 | G53: 0 | H53: 0
B54: e7) Activos Biológicos | C54: 0 | D54: 0 | E54: 0 | F54: 0 | G54: 0 | H54: 0
B55: e8) Bienes Inmuebles | C55: 0 | D55: 0 | E55: 0 | F55: 0 | G55: 0 | H55: 0
B56: e9) Activos Intangibles | C56: 0 | D56: 0 | E56: 0 | F56: 0 | G56: 0 | H56: 0
A57: F. Inversión Pública (F=f1+f2+f3) | C57: =+C58+C59+C60 -> 0 | D57: =+D58+D59+D60 -> 0 | E57: 0 | F57: 0 | G57: 0 | H57: 0
B58: f1) Obra Pública en Bienes de Dominio Público | C58: 0 | D58: 0 | E58: =+C58+D58 -> 0 | F58: 0 | G58: 0 | H58: =+E58-F58 -> 0
B59: f2) Obra Pública en Bienes Propios | C59: 0 | D59: 0 | E59: 0 | F59: 0 | G59: 0 | H59: 0
B60: f3) Proyectos Productivos y Acciones de Fomento | C60: 0 | D60: 0 | E60: 0 | F60: 0 | G60: 0 | H60: 0
A61: G. Inversiones Financieras y Otras Provisiones (G=g1+g2+g3+g4+g5+g6+g7) | C61: =+C62+C63+C64+C65+C66+C68+C69 -> 0 | D61: =+D62+D63+D64+D65+D66+D68+D69 -> 0 | E61: 0 | F61: 0 | G61: 0 | H61: 0
B62: g1) Inversiones Para el Fomento de Actividades Productivas | C62: 0 | D62: 0 | E62: =+C62+D62 -> 0 | F62: 0 | G62: 0 | H62: =+E62-F62 -> 0
B63: g2) Acciones y Participaciones de Capital | C63: 0 | D63: 0 | E63: 0 | F63: 0 | G63: 0 | H63: 0
B64: g3) Compra de Títulos y Valores | C64: 0 | D64: 0 | E64: 0 | F64: 0 | G64: 0 | H64: 0
B65: g4) Concesión de Préstamos | C65: 0 | D65: 0 | E65: 0 | F65: 0 | G65: 0 | H65: 0
B66: g5) Inversiones en Fideicomisos, Mandatos y Otros Análogos | C66: 0 | D66: 0 | E66: 0 | F66: 0 | G66: 0 | H66: 0
B67: Fideicomiso de Desastres Naturales (Informativo) | C67: 0 | D67: 0 | E67: 0 | F67: 0 | G67: 0 | H67: 0
B68: g6) Otras Inversiones Financieras | C68: 0 | D68: 0 | E68: 0 | F68: 0 | G68: 0 | H68: 0
B69: g7) Provisiones para Contingencias y Otras Erogaciones Especiales | C69: 0 | D69: 0 | E69: 0 | F69: 0 | G69: 0 | H69: 0
A70: H. Participaciones y Aportaciones (H=h1+h2+h3) | C70: =+C71+C72+C73 -> 0 | D70: =+D71+D72+D73 -> 0 | E70: 0 | F70: 0 | G70: 0 | H70: 0
B71: h1) Participaciones | C71: 0 | D71: 0 | E71: =+C71+D71 -> 0 | F71: 0 | G71: 0 | H71: =+E71-F71 -> 0
B72: h2) Aportaciones | C72: 0 | D72: 0 | E72: 0 | F72: 0 | G72: 0 | H72: 0
B73: h3) Convenios | C73: 0 | D73: 0 | E73: 0 | F73: 0 | G73: 0 | H73: 0
A74: I. Deuda Pública (I=i1+i2+i3+i4+i5+i6+i7) | C74: 0 | D74: 0 | E74: 0 | F74: 0 | G74: 0 | H74: 0
B75: i1) Amortización de la Deuda Pública | C75: =+C76+C77+C78+C79+C80+C81 -> 0 | D75: =+D76+D77+D78+D79+D80+D81 -> 0 | E75: 0 | F75: 0 | G75: 0 | H75: 0
B76: i2) Intereses de la Deuda Pública | C76: 0 | D76: 0 | E76: =+C76+D76 -> 0 | F76: 0 | G76: 0 | H76: =+E76-F76 -> 0
B77: i3) Comisiones de la Deuda Pública | C77: 0 | D77: 0 | E77: 0 | F77: 0 | G77: 0 | H77: 0
B78: i4) Gastos de la Deuda Pública | C78: 0 | D78: 0 | E78: 0 | F78: 0 | G78: 0 | H78: 0
B79: i5) Costo por Coberturas | C79: 0 | D79: 0 | E79: 0 | F79: 0 | G79: 0 | H79: 0
B80: i6) Apoyos Financieros | C80: 0 | D80: 0 | E80: 0 | F80: 0 | G80: 0 | H80: 0
B81: i7) Adeudos de Ejercicios Fiscales Anteriores (ADEFAS) | C81: 0 | D81: 0 | E81: 0 | F81: 0 | G81: 0 | H81: 0
A84: II. Gasto Etiquetado (II=A+B+C+D+E+F+G+H+I) | C84: =+C86+C94+C104+C114+C124+C134+C138+C147+C151 -> 0 | D84: =+D86+D94+D104+D114+D124+D134+D138+D147+D151 -> 0 | E84: 0 | F84: 0 | G84: 0 | H84: 0
A85: A. Servicios Personales (A=a1+a2+a3+a4+a5+a6+a7) | C85: =+C86+C87+C88+C89+C90+C91+C92 -> 0 | D85: =+D86+D87+D88+D89+D90+D91+D92 -> 0 | E85: 0 | F85: 0 | G85: 0 | H85: 0
B86: a1) Remuneraciones al Personal de Carácter Permanente | C86: =+C87+C88+C89+C90+C91+C92+C93 -> 0 | D86: 0 | E86: 0 | F86: 0 | G86: 0 | H86: 0
B87: a2) Remuneraciones al Personal de Carácter Transitorio | C87: =+C88+C89+C90+C91+C92+C93+C94 -> 0 | D87: 0 | E87: 0 | F87: 0 | G87: 0 | H87: 0
B88: a3) Remuneraciones Adicionales y Especiales | C88: =+C89+C90+C91+C92+C93+C94+C95 -> 0 | D88: 0 | E88: 0 | F88: 0 | G88: 0 | H88: 0
B89: a4) Seguridad Social | C89: =+C90+C91+C92+C93+C94+C95+C96 -> 0 | D89: 0 | E89: 0 | F89: 0 | G89: 0 | H89: 0
B90: a5) Otras Prestaciones Sociales y Económicas | C90: =+C91+C92+C93+C94+C95+C96+C97 -> 0 | D90: 0 | E90: 0 | F90: 0 | G90: 0 | H90: 0
B91: a6) Previsiones | C91: =+C92+C93+C94+C95+C96+C97+C98 -> 0 | D91: 0 | E91: 0 | F91: 0 | G91: 0 | H91: 0
B92: a7) Pago de Estímulos a Servidores Públicos | C92: =+C93+C94+C95+C96+C97+C98+C99 -> 0 | D92: 0 | E92: 0 | F92: 0 | G92: 0 | H92: 0
A93: B. Materiales y Suministros (B=b1+b2+b3+b4+b5+b6+b7+b8+b9) | C93: =+C94+C95+C96+C97+C98+C99+C100+C101+C102 -> 0 | D93: =+D94+D95+D96+D97+D98+D99+D100+D101+D102 -> 0 | E93: 0 | F93: 0 | G93: 0 | H93: 0
B94: b1) Materiales de Administración, Emisión de Documentos y Artículos Oficiales | C94: =+C95+C96+C97+C98+C99+C100+C101 -> 0 | D94: 0 | E94: 0 | F94: 0 | G94: 0 | H94: 0
B95: b2) Alimentos y Utensilios | C95: =+C96+C97+C98+C99+C100+C101+C102 -> 0 | D95: 0 | E95: 0 | F95: 0 | G95: 0 | H95: 0
B96: b3) Materias Primas y Materiales de Producción y Comercialización | C96: =+C97+C98+C99+C100+C101+C102+C103 -> 0 | D96: 0 | E96: 0 | F96: 0 | G96: 0 | H96: 0
B97: b4) Materiales y Artículos de Construcción y de Reparación | C97: =+C98+C99+C100+C101+C102+C103+C104 -> 0 | D97: 0 | E97: 0 | F97: 0 | G97: 0 | H97: 0
B98: b5) Productos Químicos, Farmacéuticos y de Laboratorio | C98: =+C99+C100+C101+C102+C103+C104+C105 -> 0 | D98: 0 | E98: 0 | F98: 0 | G98: 0 | H98: 0
B99: b6) Combustibles, Lubricantes y Aditivos | C99: =+C100+C101+C102+C103+C104+C105+C106 -> 0 | D99: 0 | E99: 0 | F99: 0 | G99: 0 | H99: 0
B100: b7) Vestuario, Blancos, Prendas de Protección y Artículos Deportivos | C100: =+C101+C102+C103+C104+C105+C106+C107 -> 0 | D100: 0 | E100: 0 | F100: 0 | G100: 0 | H100: 0
B101: b8) Materiales y Suministros Para Seguridad | C101: =+C102+C103+C104+C105+C106+C107+C108 -> 0 | D101: 0 | E101: 0 | F101: 0 | G101: 0 | H101: 0
B102: b9) Herramientas, Refacciones y Accesorios Menores | C102: =+C103+C104+C105+C106+C107+C108+C109 -> 0 | D102: 0 | E102: 0 | F102: 0 | G102: 0 | H102: 0
A103: C. Servicios Generales (C=c1+c2+c3+c4+c5+c6+c7+c8+c9) | C103: =+C104+C105+C106+C107+C108+C109+C110+C111+C112 -> 0 | D103: =+D104+D105+D106+D107+D108+D109+D110+D111+D112 -> 0 | E103: 0 | F103: 0 | G103: 0 | H103: 0
B104: c1) Servicios Básicos | C104: =+C105+C106+C107+C108+C109+C110+C111 -> 0 | D104: =+D105+D106+D107+D108+D109+D110+D111 -> 0 | E104: =+E105+E106+E107+E108+E109+E110+E111 -> 0 | F104: =+F105+F106+F107+F108+F109+F110+F111 -> 0 | G104: =+G105+G106+G107+G108+G109+G110+G111 -> 0 | H104: 0
B105: c2) Servicios de Arrendamiento | C105: 0 | D105: 0 | E105: 0 | F105: 0 | G105: 0 | H105: 0
B106: c3) Servicios Profesionales, Científicos, Técnicos y Otros Servicios | C106: 0 | D106: 0 | E106: 0 | F106: 0 | G106: 0 | H106: 0
B107: c4) Servicios Financieros, Bancarios y Comerciales | C107: 0 | D107: 0 | E107: 0 | F107: 0 | G107: 0 | H107: 0
B108: c5) Servicios de Instalación, Reparación, Mantenimiento y Conservación | C108: 0 | D108: 0 | E108: 0 | F108: 0 | G108: 0 | H108: 0
B109: c6) Servicios de Comunicación Social y Publicidad | C109: 0 | D109: 0 | E109: 0 | F109: 0 | G109: 0 | H109: 0
B110: c7) Servicios de Traslado y Viáticos | C110: 0 | D110: 0 | E110: 0 | F110: 0 | G110: 0 | H110: 0
B111: c8) Servicios Oficiales | C111: 0 | D111: 0 | E111: 0 | F111: 0 | G111: 0 | H111: 0
B112: c9) Otros Servicios Generales | C112: 0 | D112: 0 | E112: 0 | F112: 0 | G112: 0 | H112: 0
A113: D. Transferencias, Asignaciones, Subsidios y Otras Ayudas (D=d1+d2+d3+d4+d5+d6+d7+d8+d9) | C113: =+C114+C115+C116+C117+C118+C119+C120+C121+C122 -> 0 | D113: =+D114+D115+D116+D117+D118+D119+D120+D121+D122 -> 0 | E113: 0 | F113: 0 | G113: 0 | H113: 0
B114: d1) Transferencias Internas y Asignaciones al Sector Público | C114: =+C115+C116+C117+C118+C119+C120+C121 -> 0 | D114: =+D115+D116+D117+D118+D119+D120+D121 -> 0 | E114: =+E115+E116+E117+E118+E119+E120+E121 -> 0 | F114: =+F115+F116+F117+F118+F119+F120+F121 -> 0 | G114: =+G115+G116+G117+G118+G119+G120+G121 -> 0 | H114: 0
B115: d2) Transferencias al Resto del Sector Público | C115: 0 | D115: 0 | E115: 0 | F115: 0 | G115: 0 | H115: 0
B116: d3) Subsidios y Subvenciones | C116: 0 | D116: 0 | E116: 0 | F116: 0 | G116: 0 | H116: 0
B117: d4) Ayudas Sociales | C117: 0 | D117: 0 | E117: 0 | F117: 0 | G117: 0 | H117: 0
B118: d5) Pensiones y Jubilaciones | C118: 0 | D118: 0 | E118: 0 | F118: 0 | G118: 0 | H118: 0
B119: d6) Transferencias a Fideicomisos, Mandatos y Otros Análogos | C119: 0 | D119: 0 | E119: 0 | F119: 0 | G119: 0 | H119: 0
B120: d7) Transferencias a la Seguridad Social | C120: 0 | D120: 0 | E120: 0 | F120: 0 | G120: 0 | H120: 0
B121: d8) Donativos | C121: 0 | D121: 0 | E121: 0 | F121: 0 | G121: 0 | H121: 0
B122: d9) Transferencias al Exterior | C122: 0 | D122: 0 | E122: 0 | F122: 0 | G122: 0 | H122: 0
A123: E. Bienes Muebles, Inmuebles e Intangibles (E=e1+e2+e3+e4+e5+e6+e7+e8+e9) | C123: =+C124+C125+C126+C127+C128+C129+C130+C131+C132 -> 0 | D123: =+D124+D125+D126+D127+D128+D129+D130+D131+D132 -> 0 | E123: 0 | F123: 0 | G123: 0 | H123: 0
B124: e1) Mobiliario y Equipo de Administración | C124: =+C125+C126+C127+C128+C129+C130+C131 -> 0 | D124: =+D125+D126+D127+D128+D129+D130+D131 -> 0 | E124: =+E125+E126+E127+E128+E129+E130+E131 -> 0 | F124: =+F125+F126+F127+F128+F129+F130+F131 -> 0 | G124: =+G125+G126+G127+G128+G129+G130+G131 -> 0 | H124: 0
B125: e2) Mobiliario y Equipo Educacional y Recreativo | C125: 0 | D125: 0 | E125: 0 | F125: 0 | G125: 0 | H125: 0
B126: e3) Equipo e Instrumental Médico y de Laboratorio | C126: 0 | D126: 0 | E126: 0 | F126: 0 | G126: 0 | H126: 0
B127: e4) Vehículos y Equipo de Transporte | C127: 0 | D127: 0 | E127: 0 | F127: 0 | G127: 0 | H127: 0
B128: e5) Equipo de Defensa y Seguridad | C128: 0 | D128: 0 | E128: 0 | F128: 0 | G128: 0 | H128: 0
B129: e6) Maquinaria, Otros Equipos y Herramientas | C129: 0 | D129: 0 | E129: 0 | F129: 0 | G129: 0 | H129: 0
B130: e7) Activos Biológicos | C130: 0 | D130: 0 | E130: 0 | F130: 0 | G130: 0 | H130: 0
B131: e8) Bienes Inmuebles | C131: 0 | D131: 0 | E131: 0 | F131: 0 | G131: 0 | H131: 0
B132: e9) Activos Intangibles | C132: 0 | D132: 0 | E132: 0 | F132: 0 | G132: 0 | H132: 0
A133: F. Inversión Pública (F=f1+f2+f3) | C133: =+C134+C135+C136 -> 0 | D133: =+D134+D135+D136 -> 0 | E133: 0 | F133: 0 | G133: 0 | H133: 0
B134: f1) Obra Pública en Bienes de Dominio Público | C134: =+C135+C136+C137+C138+C139+C140+C141 -> 0 | D134: =+D135+D136+D137+D138+D139+D140+D141 -> 0 | E134: =+E135+E136+E137+E138+E139+E140+E141 -> 0 | F134: =+F135+F136+F137+F138+F139+F140+F141 -> 0 | G134: =+G135+G136+G137+G138+G139+G140+G141 -> 0 | H134: 0
B135: f2) Obra Pública en Bienes Propios | C135: 0 | D135: 0 | E135: 0 | F135: 0 | G135: 0 | H135: 0
B136: f3) Proyectos Productivos y Acciones de Fomento | C136: 0 | D136: 0 | E136: 0 | F136: 0 | G136: 0 | H136: 0
A137: G. Inversiones Financieras y Otras Provisiones (G=g1+g2+g3+g4+g5+g6+g7) | C137: =+C138+C139+C140+C141+C142+C143+C144+C145 -> 0 | D137: =+D138+D139+D140+D141+D142+D143+D144+D145 -> 0 | E137: 0 | F137: 0 | G137: 0 | H137: 0
B138: g1) Inversiones Para el Fomento de Actividades Productivas | C138: =+C139+C140+C141+C142+C143+C144+C145 -> 0 | D138: =+D139+D140+D141+D142+D143+D144+D145 -> 0 | E138: =+E139+E140+E141+E142+E143+E144+E145 -> 0 | F138: =+F139+F140+F141+F142+F143+F144+F145 -> 0 | G138: =+G139+G140+G141+G142+G143+G144+G145 -> 0 | H138: 0
B139: g2) Acciones y Participaciones de Capital | C139: 0 | D139: 0 | E139: 0 | F139: 0 | G139: 0 | H139: 0
B140: g3) Compra de Títulos y Valores | C140: 0 | D140: 0 | E140: 0 | F140: 0 | G140: 0 | H140: 0
B141: g4) Concesión de Préstamos | C141: 0 | D141: 0 | E141: 0 | F141: 0 | G141: 0 | H141: 0
B142: g5) Inversiones en Fideicomisos, Mandatos y Otros Análogos | C142: 0 | D142: 0 | E142: 0 | F142: 0 | G142: 0 | H142: 0
B143: Fideicomiso de Desastres Naturales (Informativo) | C143: 0 | D143: 0 | E143: 0 | F143: 0 | G143: 0 | H143: 0
B144: g6) Otras Inversiones Financieras | C144: 0 | D144: 0 | E144: 0 | F144: 0 | G144: 0 | H144: 0
B145: g7) Provisiones para Contingencias y Otras Erogaciones Especiales | C145: 0 | D145: 0 | E145: 0 | F145: 0 | G145: 0 | H145: 0
A146: H. Participaciones y Aportaciones (H=h1+h2+h3) | C146: =+C147+C148+C149 -> 0 | D146: =+D147+D148+D149 -> 0 | E146: 0 | F146: 0 | G146: 0 | H146: 0
B147: h1) Participaciones | C147: =+C148+C149+C150+C151+C152+C153+C154 -> 0 | D147: =+D148+D149+D150+D151+D152+D153+D154 -> 0 | E147: =+E148+E149+E150+E151+E152+E153+E154 -> 0 | F147: =+F148+F149+F150+F151+F152+F153+F154 -> 0 | G147: =+G148+G149+G150+G151+G152+G153+G154 -> 0 | H147: 0
B148: h2) Aportaciones | C148: 0 | D148: 0 | E148: 0 | F148: 0 | G148: 0 | H148: 0
B149: h3) Convenios | C149: 0 | D149: 0 | E149: 0 | F149: 0 | G149: 0 | H149: 0
A150: I. Deuda Pública (I=i1+i2+i3+i4+i5+i6+i7) | C150: =+C151+C152+C153+C154+C155+C156+C157 -> 0 | D150: =+D151+D152+D153+D154+D155+D156+D157 -> 0 | E150: 0 | F150: 0 | G150: 0 | H150: 0
B151: i1) Amortización de la Deuda Pública | C151: 0 | D151: 0 | E151: 0 | F151: 0 | G151: 0 | H151: 0
B152: i2) Intereses de la Deuda Pública | C152: 0 | D152: 0 | E152: 0 | F152: 0 | G152: 0 | H152: 0
B153: i3) Comisiones de la Deuda Pública | C153: 0 | D153: 0 | E153: 0 | F153: 0 | G153: 0 | H153: 0
B154: i4) Gastos de la Deuda Pública | C154: 0 | D154: 0 | E154: 0 | F154: 0 | G154: 0 | H154: 0
B155: i5) Costo por Coberturas | C155: 0 | D155: 0 | E155: 0 | F155: 0 | G155: 0 | H155: 0
B156: i6) Apoyos Financieros | C156: 0 | D156: 0 | E156: 0 | F156: 0 | G156: 0 | H156: 0
B157: i7) Adeudos de Ejercicios Fiscales Anteriores (ADEFAS) | C157: 0 | D157: 0 | E157: 0 | F157: 0 | G157: 0 | H157: 0
A159: III. Total de Egresos (III = I + II) | C159: 2695000 | D159: =+D8+D83 -> 0 | E159: 2695000 | F159: 1664382 | G159: 1664382 | H159: 1030618

Sheet 6B
A1: CONSEJO ESTATAL DE POBLACION
A2: Estado Analítico del Ejercicio del Presupuesto de Egresos Detallado - LDF
A3: Clasificación Administrativa
A4: Del 1 de enero al 30 de septiembre de 2017 (b)
A5: (PESOS)
A6: Concepto (c) | B6: Egresos | G6: Subejercicio (e)
B7: Aprobado (d) | C7: Ampliaciones/ (Reducciones) | D7: Modificado | E7: Devengado | F7: Pagado
A8: I. Gasto No Etiquetado | B8: =+B10+B11+B12+B13+B14+B15+B16+B17 -> 2695000 | C8: =+C10+C11+C12+C13+C14+C15+C16+C17 -> 0 | D8: 2695000 | E8: 1664382 | F8: 1664382 | G8: =+G10 -> 1030618
A9: (I=A+B+C+D+E+F+G+H)
A10: A. Consejo Estatal de Población | B10: 2695000 | C10: 0 | D10: 2695000 | E10: 1664382 | F10: 1664382 | G10: 1030618
A11: B | B11: 0 | C11: 0 | D11: 0 | E11: 0 | F11: 0 | G11: 0
A12: C | B12: 0 | C12: 0 | D12: 0 | E12: 0 | F12: 0 | G12: 0
A13: D | B13: 0 | C13: 0 | D13: 0 | E13: 0 | F13: 0 | G13: 0
A14: E | B14: 0 | C14: 0 | D14: 0 | E14: 0 | F14: 0 | G14: 0
A15: F | B15: 0 | C15: 0 | D15: 0 | E15: 0 | F15: 0 | G15: 0
A16: G | B16: 0 | C16: 0 | D16: 0 | E16: 0 | F16: 0 | G16: 0
A17: H | B17: 0 | C17: 0 | D17: 0 | E17: 0 | F17: 0 | G17: 0
A18: II. Gasto Etiquetado | B18: =+B20+B21+B22+B23+B24+B25+B26+B27 -> 0 | C18: =+C20+C21+C22+C23+C24+C25+C26+C27 -> 0 | D18: 0 | E18: 0 | F18: 0
A19: (II=A+B+C+D+E+F+G+H)
A20: A. Consejo Estatal de Población | B20: 0 | C20: 0 | D20: 0 | E20: 0 | F20: 0 | G20: 0
A21: B | B21: 0 | C21: 0 | D21: 0 | E21: 0 | F21: 0 | G21: 0
A22: C | B22: 0 | C22: 0 | D22: 0 | E22: 0 | F22: 0 | G22: 0
A23: D | B23: 0 | C23: 0 | D23: 0 | E23: 0 | F23: 0 | G23: 0
A24: E | B24: 0 | C24: 0 | D24: 0 | E24: 0 | F24: 0 | G24: 0
A25: F | B25: 0 | C25: 0 | D25: 0 | E25: 0 | F25: 0 | G25: 0
A26: G | B26: 0 | C26: 0 | D26: 0 | E26: 0 | F26: 0 | G26: 0
A27: H | B27: 0 | C27: 0 | D27: 0 | E27: 0 | F27: 0 | G27: 0
A28: III. Total de Egresos (III = I + II) | B28: =+B8+B18 -> 2695000 | C28: =+C8+C18 -> 0 | D28: =+D8+D18 -> 2695000 | E28: =+E8+E18 -> 1664382 | F28: =+F8+F18 -> 1664382 | G28: =+G8 -> 1030618

Sheet 6C
A1: CONSEJO ESTATAL DE POBLACION
A2: Estado Analítico del Ejercicio del Presupuesto de Egresos Detallado - LDF
A3: Clasificación Funcional (Finalidad y Función)
A4: Del 1 de enero Al 30 de septiembre de 2017 (b)
A5: (PESOS)
A6: Concepto (c) | C6: Egresos | H6: Subejercicio (e)
C7: Aprobado (d) | D7: Ampliaciones/ (Reducciones) | E7: Modificado | F7: Devengado | G7: Pagado
A9: I. Gasto No Etiquetado (I=A+B+C+D) | C9: =+C10+C20+C29 -> 2695000 | D9: =+D10+D20+D29 -> 0 | E9: 2695000 | F9: 1664382 | G9: 1664382 | H9: =+H13 -> 1030618
A10: A. Gobierno (A=a1+a2+a3+a4+a5+a6+a7+a8) | C10: =+C11+C12+C13+C14+C15+C16+C17+C18 -> 2695000 | D10: =+D11+D12+D13+D14+D15+D16+D17+D18 -> 0 | E10: 2695000 | F10: 1664382 | G10: 1664382 | H10: =+H13 -> 1030618
B11: a1) Legislación | C11: 0 | D11: 0 | E11: 0 | F11: 0 | G11: 0 | H11: 0
B12: a2) Justicia | C12: 0 | D12: 0 | E12: 0 | F12: 0 | G12: 0 | H12: 0
B13: a3) Coordinación de la Política de Gobierno | C13: =+'6B'!B10 -> 2695000 | D13: =+'6B'!C10 -> 0 | E13: =+'6B'!D10 -> 2695000 | F13: =+'6B'!E10 -> 1664382 | G13: =+'6B'!F10 -> 1664382 | H13: =+'6B'!G10 -> 1030618
B14: a4) Relaciones Exteriores | C14: 0 | D14: 0 | E14: 0 | F14: 0 | G14: 0 | H14: 0
B15: a5) Asuntos Financieros y Hacendarios | C15: 0 | D15: 0 | E15: 0 | F15: 0 | G15: 0 | H15: 0
B16: a6) Seguridad Nacional | C16: 0 | D16: 0 | E16: 0 | F16: 0 | G16: 0 | H16: 0
B17: a7) Asuntos de Orden Público y de Seguridad Interior | C17: 0 | D17: 0 | E17: 0 | F17: 0 | G17: 0 | H17: 0
B18: a8) Otros Servicios Generales | C18: 0 | D18: 0 | E18: 0 | F18: 0 | G18: 0 | H18: 0
A20: B. Desarrollo Social (B=b1+b2+b3+b4+b5+b6+b7) | C20: =+C21+C22+C23+C24+C25+C26+C27 -> 0 | D20: =+D21+D22+D23+D24+D25+D26+D27 -> 0 | E20: 0 | F20: 0 | G20: 0 | H20: 0
B21: b1) Protección Ambiental | C21: 0 | D21: 0 | E21: 0 | F21: 0 | G21: 0 | H21: 0
B22: b2) Vivienda y Servicios a la Comunidad | C22: 0 | D22: 0 | E22: 0 | F22: 0 | G22: 0 | H22: 0
B23: b3) Salud | C23: 0 | D23: 0 | E23: 0 | F23: 0 | G23: 0 | H23: 0
B24: b4) Recreación, Cultura y Otras Manifestaciones Sociales | C24: 0 | D24: 0 | E24: 0 | F24: 0 | G24: 0 | H24: 0
B25: b5) Educación | C25: 0 | D25: 0 | E25: 0 | F25: 0 | G25: 0 | H25: 0
B26: b6) Protección Social | C26: 0 | D26: 0 | E26: 0 | F26: 0 | G26: 0 | H26: 0
B27: b7) Otros Asuntos Sociales | C27: 0 | D27: 0 | E27: 0 | F27: 0 | G27: 0 | H27: 0
A29: C. Desarrollo Económico (C=c1+c2+c3+c4+c5+c6+c7+c8+c9) | C29: =+C30+C31+C32+C33+C34+C35+C36+C37+C38 -> 0 | D29: =+D30+D31+D32+D33+D34+D35+D36+D37+D38 -> 0 | E29: 0 | F29: 0 | G29: 0 | H29: 0
B30: c1) Asuntos Económicos, Comerciales y Laborales en General | C30: 0 | D30: 0 | E30: 0 | F30: 0 | G30: 0 | H30: 0
B31: c2) Agropecuaria, Silvicultura, Pesca y Caza | C31: 0 | D31: 0 | E31: 0 | F31: 0 | G31: 0 | H31: 0
B32: c3) Combustibles y Energía | C32: 0 | D32: 0 | E32: 0 | F32: 0 | G32: 0 | H32: 0
B33: c4) Minería, Manufacturas y Construcción | C33: 0 | D33: 0 | E33: 0 | F33: 0 | G33: 0 | H33: 0
B34: c5) Transporte | C34: 0 | D34: 0 | E34: 0 | F34: 0 | G34: 0 | H34: 0
B35: c6) Comunicaciones | C35: 0 | D35: 0 | E35: 0 | F35: 0 | G35: 0 | H35: 0
B36: c7) Turismo | C36: 0 | D36: 0 | E36: 0 | F36: 0 | G36: 0 | H36: 0
B37: c8) Ciencia, Tecnología e Innovación | C37: 0 | D37: 0 | E37: 0 | F37: 0 | G37: 0 | H37: 0
B38: c9) Otras Industrias y Otros Asuntos Económicos | C38: 0 | D38: 0 | E38: 0 | F38: 0 | G38: 0 | H38: 0
A40: D. Otras No Clasificadas en Funciones Anteriores (D=d1+d2+d3+d4) | C40: =+C41+C42+C43+C44 -> 0 | D40: =+D41+D42+D43+D44 -> 0 | E40: 0 | F40: 0 | G40: 0 | H40: 0
B41: d1) Transacciones de la Deuda Publica / Costo Financiero de la Deuda | C41: 0 | D41: 0 | E41: 0 | F41: 0 | G41: 0 | H41: 0
B42: d2) Transferencias, Participaciones y Aportaciones Entre Diferentes Niveles y Ordenes de Gobierno | C42: 0 | D42: 0 | E42: 0 | F42: 0 | G42: 0 | H42: 0
B43: d3) Saneamiento del Sistema Financiero | C43: 0 | D43: 0 | E43: 0 | F43: 0 | G43: 0 | H43: 0
B44: d4) Adeudos de Ejercicios Fiscales Anteriores | C44: 0 | D44: 0 | E44: 0 | F44: 0 | G44: 0 | H44: 0
A46: II. Gasto Etiquetado (II=A+B+C+D) | C46: =+C47+C57+C66+C77 -> 0 | D46: =+D47+D57+D66+D77 -> 0 | E46: 0 | F46: 0 | G46: 0 | H46: 0
A47: A. Gobierno (A=a1+a2+a3+a4+a5+a6+a7+a8) | C47: =+C48+C49+C50+C51+C52+C53+C54+C55 -> 0 | D47: =+D48+D49+D50+D51+D52+D53+D54+D55 -> 0 | E47: 0 | F47: 0 | G47: 0 | H47: 0
B48: a1) Legislación | C48: 0 | D48: 0 | E48: 0 | F48: 0 | G48: 0 | H48: 0
B49: a2) Justicia | C49: 0 | D49: 0 | E49: 0 | F49: 0 | G49: 0 | H49: 0
B50: a3) Coordinación de la Política de Gobierno | C50: 0 | D50: 0 | E50: 0 | F50: 0 | G50: 0 | H50: 0
B51: a4) Relaciones Exteriores | C51: 0 | D51: 0 | E51: 0 | F51: 0 | G51: 0 | H51: 0
B52: a5) Asuntos Financieros y Hacendarios | C52: 0 | D52: 0 | E52: 0 | F52: 0 | G52: 0 | H52: 0
B53: a6) Seguridad Nacional | C53: 0 | D53: 0 | E53: 0 | F53: 0 | G53: 0 | H53: 0
B54: a7) Asuntos de Orden Público y de Seguridad Interior | C54: 0 | D54: 0 | E54: 0 | F54: 0 | G54: 0 | H54: 0
B55: a8) Otros Servicios Generales | C55: 0 | D55: 0 | E55: 0 | F55: 0 | G55: 0 | H55: 0
A57: B. Desarrollo Social (B=b1+b2+b3+b4+b5+b6+b7) | C57: =+C58+C59+C60+C61+C62+C63+C64 -> 0 | D57: =+D58+D59+D60+D61+D62+D63+D64 -> 0 | E57: 0 | F57: 0 | G57: 0 | H57: 0
B58: b1) Protección Ambiental | C58: 0 | D58: 0 | E58: 0 | F58: 0 | G58: 0 | H58: 0
B59: b2) Vivienda y Servicios a la Comunidad | C59: 0 | D59: 0 | E59: 0 | F59: 0 | G59: 0 | H59: 0
B60: b3) Salud | C60: 0 | D60: 0 | E60: 0 | F60: 0 | G60: 0 | H60: 0
B61: b4) Recreación, Cultura y Otras Manifestaciones Sociales | C61: 0 | D61: 0 | E61: 0 | F61: 0 | G61: 0 | H61: 0
B62: b5) Educación | C62: 0 | D62: 0 | E62: 0 | F62: 0 | G62: 0 | H62: 0
B63: b6) Protección Social | C63: 0 | D63: 0 | E63: 0 | F63: 0 | G63: 0 | H63: 0
B64: b7) Otros Asuntos Sociales | C64: 0 | D64: 0 | E64: 0 | F64: 0 | G64: 0 | H64: 0
A66: C. Desarrollo Económico (C=c1+c2+c3+c4+c5+c6+c7+c8+c9) | C66: =+C67+C68+C69+C70+C71+C72+C73+C74+C75 -> 0 | D66: =+D67+D68+D69+D70+D71+D72+D73+D74+D75 -> 0 | E66: 0 | F66: 0 | G66: 0 | H66: 0
B67: c1) Asuntos Económicos, Comerciales y Laborales en General | C67: 0 | D67: 0 | E67: 0 | F67: 0 | G67: 0 | H67: 0
B68: c2) Agropecuaria, Silvicultura, Pesca y Caza | C68: 0 | D68: 0 | E68: 0 | F68: 0 | G68: 0 | H68: 0
B69: c3) Combustibles y Energía | C69: 0 | D69: 0 | E69: 0 | F69: 0 | G69: 0 | H69: 0
B70: c4) Minería, Manufacturas y Construcción | C70: 0 | D70: 0 | E70: 0 | F70: 0 | G70: 0 | H70: 0
B71: c5) Transporte | C71: 0 | D71: 0 | E71: 0 | F71: 0 | G71: 0 | H71: 0
B72: c6) Comunicaciones | C72: 0 | D72: 0 | E72: 0 | F72: 0 | G72: 0 | H72: 0
B73: c7) Turismo | C73: 0 | D73: 0 | E73: 0 | F73: 0 | G73: 0 | H73: 0
B74: c8) Ciencia, Tecnología e Innovación | C74: 0 | D74: 0 | E74: 0 | F74: 0 | G74: 0 | H74: 0
B75: c9) Otras Industrias y Otros Asuntos Económicos | C75: 0 | D75: 0 | E75: 0 | F75: 0 | G75: 0 | H75: 0
A77: D. Otras No Clasificadas en Funciones Anteriores (D=d1+d2+d3+d4) | C77: =+C78+C79+C80+C81 -> 0 | D77: =+D78+D79+D80+D81 -> 0 | E77: 0 | F77: 0 | G77: 0 | H77: 0
B78: d1) Transacciones de la Deuda Publica / Costo Financiero de la Deuda | C78: 0 | D78: 0 | E78: 0 | F78: 0 | G78: 0 | H78: 0
B79: d2) Transferencias, Participaciones y Aportaciones Entre Diferentes Niveles y Ordenes de Gobierno | C79: 0 | D79: 0 | E79: 0 | F79: 0 | G79: 0 | H79: 0
B80: d3) Saneamiento del Sistema Financiero | C80: 0 | D80: 0 | E80: 0 | F80: 0 | G80: 0 | H80: 0
B81: d4) Adeudos de Ejercicios Fiscales Anteriores | C81: 0 | D81: 0 | E81: 0 | F81: 0 | G81: 0 | H81: 0
A83: III. Total de Egresos (III = I + II) | C83: =+C9+C46 -> 2695000 | D83: =+D9+D46 -> 0 | E83: 2695000 | F83: 1664382 | G83: 1664382 | H83: 1030618

Sheet 6D
A1: CONSEJO ESTATAL DE POBLACION
A2: Estado Analítico del Ejercicio del Presupuesto de Egresos Detallado - LDF
A3: Clasificación de Servicios Personales por Categoría
A4: Del 1 de enero al 30 de septiembre de 2017 (b)
A5: (PESOS)
A6: Concepto (c) | B6: Egresos | G6: Subejercicio (e)
B7: Aprobado (d) | C7: Ampliaciones/ (Reducciones) | D7: Modificado | E7: Devengado | F7: Pagado
A8: I. Gasto No Etiquetado (I=A+B+C+D+E+F) | B8: =+B9+B10+B11+B14+B15+B18 -> 1691000 | C8: =+C9+C10+C11+C14+C15+C18 -> 0 | D8: 1691000 | E8: 1040224 | F8: 1040224 | G8: 650776
A9: A. Personal Administrativo y de Servicio Público | B9: 1691000 | C9: 0 | D9: =+B9+C9 -> 1691000 | E9: 1040224 | F9: 1040224 | G9: =SUM(D9-F9) -> 650776
A10: B. Magisterio | B10: =+B11+B12 -> 0 | C10: =+C11+C12 -> 0 | D10: 0 | E10: 0 | F10: 0 | G10: 0
A11: C. Servicios de Salud (C=c1+c2) | B11: =+B12+B13 -> 0 | C11: 0 | D11: 0 | E11: 0 | F11: 0 | G11: 0
A12: c1) Personal Administrativo | B12: =+B13+B14 -> 0 | C12: 0 | D12: 0 | E12: 0 | F12: 0 | G12: 0
A13: c2) Personal Médico, Paramédico y afín | B13: =+B14+B15 -> 0 | C13: 0 | D13: 0 | E13: 0 | F13: 0 | G13: 0
A14: D. Seguridad Pública | B14: =+B15+B16 -> 0 | C14: 0 | D14: 0 | E14: 0 | F14: 0 | G14: 0
A15: E. Gastos asociados a la implementación de nuevas leyes federales o reformas a las mismas (E = e1 + e2) | B15: =+B16+B17 -> 0 | C15: 0 | D15: 0 | E15: 0 | F15: 0 | G15: 0
A16: e1) Nombre del Programa o Ley 1 | B16: =+B17+B18 -> 0 | C16: 0 | D16: 0 | E16: 0 | F16: 0 | G16: 0
A17: e2) Nombre del Programa o Ley 2 | B17: =+B18+B19 -> 0 | C17: 0 | D17: 0 | E17: 0 | F17: 0 | G17: 0
A18: F. Sentencias laborales definitivas | B18: =+B19+B20 -> 0 | C18: 0 | D18: 0 | E18: 0 | F18: 0 | G18: 0
A20: II. Gasto Etiquetado (II=A+B+C+D+E+F) | B20: =+B21+B22+B23+B26+B27+B30 -> 0 | C20: =+C21+C22+C23+C26+C27+C30 -> 0 | D20: 0 | E20: 0 | F20: 0 | G20: 0
A21: A. Personal Administrativo y de Servicio Público | B21: 0 | C21: 0 | D21: 0 | E21: 0 | F21: 0 | G21: 0
A22: B. Magisterio | B22: 0 | C22: 0 | D22: 0 | E22: 0 | F22: 0 | G22: 0
A23: C. Servicios de Salud (C=c1+c2) | B23: 0 | C23: 0 | D23: 0 | E23: 0 | F23: 0 | G23: 0
A24: c1) Personal Administrativo | B24: 0 | C24: 0 | D24: 0 | E24: 0 | F24: 0 | G24: 0
A25: c2) Personal Médico, Paramédico y afín | B25: 0 | C25: 0 | D25: 0 | E25: 0 | F25: 0 | G25: 0
A26: D. Seguridad Pública | B26: 0 | C26: 0 | D26: 0 | E26: 0 | F26: 0 | G26: 0
A27: E. Gastos asociados a la implementación de nuevas leyes federales o reformas a las mismas (E = e1 + e2) | B27: 0 | C27: 0 | D27: 0 | E27: 0 | F27: 0 | G27: 0
A28: e1) Nombre del Programa o Ley 1 | B28: 0 | C28: 0 | D28: 0 | E28: 0 | F28: 0 | G28: 0
A29: e2) Nombre del Programa o Ley 2 | B29: 0 | C29: 0 | D29: 0 | E29: 0 | F29: 0 | G29: 0
A30: F. Sentencias laborales definitivas | B30: 0 | C30: 0 | D30: 0 | E30: 0 | F30: 0 | G30: 0
A31: III. Total del Gasto en Servicios Personales (III = I + II) | B31: =+B20+B8 -> 1691000 | C31: =+C20+C8 -> 0 | D31: 1691000 | E31: 1040224 | F31: 1040224 | G31: 650776
